fUST/lending_fUST_20240415
["ID","MTS","AMOUNT","RATE_DAILY","PERIOD"]
[322624259,1713129980333,347.84312696,0.00020919,2]
[322624260,1713129986122,1966.28966028,0.00020918,2]
[322624261,1713130025193,2495.883819,0.00020015,2]
[322624262,1713130030130,-925.94770365,0.00021007,2]
[322624263,1713130030151,-156.74161626,0.00021007,2]
[322624264,1713130030171,-23.9457582,0.00021007,2]
[322624265,1713130032122,-598.59661994,0.00021007,2]
[322624266,1713130032143,-3831.00933194,0.00021007,2]
[322624267,1713130034061,7311.20752603,0.00020919,2]
[322624268,1713130050638,960.04853159,0.00019957,2]
[322624269,1713130080773,300.0,0.00021,2]
[322624270,1713130081354,300.0,0.00021,2]
[322624271,1713130082837,2095.50910525,0.00021,2]
[322624272,1713130083686,2606.23067944,0.00021,2]
[322624273,1713130085276,154.84515485,0.00021,2]
[322624274,1713130090751,22771.62604295,0.00021,2]
[322624275,1713130092964,937.19103165,0.00021,2]
[322624276,1713130093144,2619.14379363,0.00021,2]
[322624277,1713130095007,500.0,0.00021,2]
[322624278,1713130095720,154.84515485,0.00020919,2]
[322624279,1713130099432,241.01674728,0.00020999,2]
[322624280,1713130101949,882.129051,0.00021,2]
[322624281,1713130102621,236.25199096,0.00021,2]
[322624282,1713130103981,277.38744536,0.00021,2]
[322624283,1713130105454,164.19113143,0.00020919,2]
[322624284,1713130106740,1932.85012401,0.00021,2]
[322624285,1713130109063,9554.70298201,0.00021,2]
[322624286,1713130110478,2769.3607029,0.00021,2]
[322624287,1713130111674,163.04830139,0.00020919,2]
[322624288,1713130113152,622.54237814,0.00021,2]
[322624289,1713130113189,887.82162217,0.00021,2]
[322624290,1713130117812,525.35430968,0.00021,2]
[322624291,1713130118359,1855.61624553,0.00021,2]
[322624292,1713130120046,5572.91627015,0.00021,2]
[322624293,1713130120835,185.83605706,0.00021,2]
[322624294,1713130121135,181.28335515,0.00021,2]
[322624295,1713130122161,304.17480318,0.00021,2]
[322624296,1713130122844,2939.15683596,0.00021,2]
[322624297,1713130123386,563.47446363,0.00021,2]
[322624298,1713130124232,207.50225952,0.00021,2]
[322624299,1713130127772,408.16438819,0.00021,2]
[322624300,1713130129040,3739.92568584,0.00021,2]
[322624301,1713130129781,1672.57753555,0.00021,2]
[322624302,1713130133138,1966.28966028,0.00021,2]
[322624303,1713130133215,540.45532517,0.00021,2]
[322624304,1713130133667,59048.78648612,0.00021,2]
[322624305,1713130140766,300.0,0.00021,2]
[322624306,1713130142095,300.0,0.00021,2]
[322624307,1713130142871,154.84515485,0.00021,2]
[322624308,1713130148313,-1495.01395474,0.00021001,2]
[322624309,1713130148334,-282.66664621,0.00021001,2]
[322624310,1713130148354,-2619.14379363,0.00021001,2]
[322624311,1713130148374,-326.777732,0.00021001,2]
[322624312,1713130148393,-5074.66576581,0.00021001,2]
[322624313,1713130148413,-1371.80975338,0.00021001,2]
[322624314,1713130148433,-309.61301242,0.00021001,2]
[322624315,1713130148454,-2606.23067944,0.00021001,2]
[322624316,1713130148474,-18919.51893317,0.00021001,2]
[322624317,1713130148494,-937.19103165,0.00021001,2]
[322624318,1713130148513,-500.0,0.00021001,2]
[322624319,1713130148537,-240.58533327,0.00021001,2]
[322624320,1713130148558,-297.45647123,0.00021001,2]
[322624321,1713130148578,-1930.96131375,0.00021001,2]
[322624322,1713130148598,-693.46687665,0.00021001,2]
[322624323,1713130148619,-9297.82387279,0.00021001,2]
[322624324,1713130148638,-887.37861442,0.00021001,2]
[322624325,1713130148658,-277.10572932,0.00021001,2]
[322624326,1713130148677,-525.35430968,0.00021001,2]
[322624327,1713130148697,-2117.38080575,0.00021001,2]
[322624328,1713130149093,-1836.53463039,0.00021001,2]
[322624329,1713130160092,-1619.00083401,0.00021001,2]
[322624330,1713130160112,-303.87446582,0.00021001,2]
[322624331,1713130160133,-1855.61624553,0.00021001,2]
[322624332,1713130160153,-562.88958043,0.00021001,2]
[322624333,1713130160173,-185.73445743,0.00021001,2]
[322624334,1713130160193,-207.50225952,0.00021001,2]
[322624335,1713130160213,-1670.58694572,0.00021001,2]
[322624336,1713130160233,-3736.6295409,0.00021001,2]
[322624337,1713130160253,-2670.78216756,0.00021001,2]
[322624338,1713130160272,-211.87247077,0.00021002,2]
[322624339,1713130160293,-156.59966208,0.00021007,2]
[322624340,1713130160313,-285.07894983,0.00021033,2]
[322624341,1713130160334,-154.95351395,0.00021033,2]
[322624342,1713130160358,-155.1560317,0.00021033,2]
[322624343,1713130160378,-160.44768678,0.00021041,2]
[322624344,1713130160398,-300.43979342,0.00021041,2]
[322624345,1713130160419,-155.21602154,0.00021041,2]
[322624346,1713130160440,-400.0,0.00021041,2]
[322624347,1713130160464,-193.22053762,0.00021041,2]
[322624348,1713130160484,-156.51780133,0.00021041,2]
[322624349,1713130160506,-187.75656943,0.00021041,2]
[322624350,1713130160526,-270.20221594,0.00021041,2]
[322624351,1713130160548,-154.99086264,0.00021041,2]
[322624352,1713130160569,-202.82766639,0.00021041,2]
[322624353,1713130160589,-230.38837827,0.00021049,2]
[322624354,1713130160610,-160.52785731,0.00021049,2]
[322624355,1713130160631,-188.75485878,0.0002105,2]
[322624356,1713130160651,-155.02125076,0.0002105,2]
[322624357,1713130160672,-301.1507237,0.0002105,2]
[322624358,1713130160693,-687.6463722,0.0002105,2]
[322624359,1713130160714,-167.21553136,0.0002105,2]
[322624360,1713130160734,-171.77460806,0.00021051,2]
[322624361,1713130160754,-3293.28998897,0.00021051,2]
[322624362,1713130160774,-158.71046401,0.00022842,2]
[322624363,1713130160796,-387.0,0.00022843,2]
[322624364,1713130160817,-420.0,0.000231,2]
[322624365,1713130160836,-380.0,0.00024658,2]
[322624366,1713130160857,-300.03776698,0.00025,2]
[322624367,1713130160876,-2329.32263511,0.00025266,2]
[322624368,1713130160900,-587.0,0.0002541,2]
[322624369,1713130160920,-662.4455497,0.00025467,2]
[322624370,1713130160941,-159.188402,0.00027397,2]
[322624371,1713130160967,-185.094133,0.00027397,2]
[322624372,1713130160988,-175.6790731,0.00027397,2]
[322624373,1713130161007,-166.666666,0.00027397,2]
[322624374,1713130161028,-654.0,0.00027951,2]
[322624375,1713130161048,-166.666666,0.00028038,2]
[322624376,1713130161068,-166.666666,0.00028679,2]
[322624377,1713130161087,-649.92327912,0.00028766,2]
[322624378,1713130161108,-64.31270025,0.00029321,2]
[322624379,1713130161135,-102.35396575,0.00029321,2]
[322624380,1713130161156,-2329.32263511,0.00029596,2]
[322624381,1713130161174,-166.666666,0.00029962,2]
[322624382,1713130161193,-304.02078287,0.0003,2]
[322624383,1713130161211,-202.0,0.0003,2]
[322624384,1713130161230,-872.624964,0.00030083,2]
[322624385,1713130161249,-166.666666,0.00030603,2]
[322624386,1713130161270,-159.188402,0.00033844,2]
[322624387,1713130161291,-2329.32263511,0.00033926,2]
[322624388,1713130165088,-2497.85535955,0.00035,4]
[322624389,1713130165109,-6857.88352877,0.00035,4]
[322624390,1713130165128,-7297.26111168,0.00035,30]
[322624391,1713130216772,163.16853068,0.00021001,2]
[322624392,1713130217857,155.18236766,0.00021001,2]
[322624393,1713130218087,3365.31899795,0.00021001,2]
[322624419,1713130232365,-2023.32022017,0.00035,30]
[322624421,1713130232375,-1944.62134983,0.00035,4]
[322624492,1713130234360,452.96513745,0.00027496,2]
[322624493,1713130234551,452.96513745,0.00032496,2]
[322624521,1713130238345,-617.71128372,0.00035,4]
[322624523,1713130238357,-2008.65598526,0.00035615,4]
[322624524,1713130238365,-472.460057,0.00035616,120]
[322624525,1713130238374,-7487.60343398,0.00036332,4]
[322624526,1713130238383,-3501.65350404,0.00036333,4]
[322624527,1713130238392,-726.13959236,0.00036334,4]
[322624528,1713130238401,-836.42929884,0.00036335,4]
[322624529,1713130238409,-249.26596976,0.00036336,2]
[322624530,1713130238418,-24900.0,0.00037143,2]
[322624531,1713130238427,-338.0,0.00037319,2]
[322624532,1713130238436,-629.77657138,0.00037319,2]
[322624533,1713130238445,-9394.81948009,0.00037939,7]
[322624534,1713130238599,-197.17619215,0.00037972,2]
[322624535,1713130238609,-304.36273609,0.0003821,8]
[322624536,1713130238619,-2329.32263511,0.00038256,2]
[322624537,1713130238628,-2500.0,0.000383,18]
[322624538,1713130238637,-2500.0,0.0003831,18]
[322624539,1713130238647,-2500.0,0.0003832,18]
[322624540,1713130238657,-2500.0,0.0003833,18]
[322624541,1713130238666,-2500.0,0.0003834,18]
[322624542,1713130238676,-2500.0,0.0003835,18]
[322624543,1713130238687,-3527.57423923,0.0003835,4]
[322624544,1713130238696,-282.24752935,0.0003835,4]
[322624545,1713130238707,-612.46800081,0.0003835,4]
[322624546,1713130238717,-158.53827693,0.0003835,4]
[322624547,1713130238727,-207.06817776,0.0003835,4]
[322624548,1713130238738,-1381.23829104,0.0003835,4]
[322624549,1713130238748,-205.0,0.0003835,16]
[322624550,1713130238757,-407.77799975,0.00038351,4]
[322624551,1713130238768,-181.07861207,0.00038351,4]
[322624552,1713130238778,-1453.16689185,0.00038351,4]
[322624553,1713130238788,-154.84515485,0.00038351,4]
[322624554,1713130238799,-160.99299589,0.00038351,4]
[322624555,1713130238809,-155.42165109,0.00038351,4]
[322624556,1713130238819,-326.47719376,0.00038351,4]
[322624557,1713130238830,-154.95351395,0.00038352,4]
[322624558,1713130238840,-154.95351395,0.00038352,4]
[322624559,1713130238854,-58995.43240818,0.00038352,4]
[322624560,1713130238867,-155.06001921,0.00038353,4]
[322624561,1713130238878,-154.8915759,0.00038353,4]
[322624562,1713130238889,-230.84972227,0.00038353,4]
[322624563,1713130238899,-239.38161668,0.00038353,4]
[322624564,1713130238911,-3612.99,0.00038353,2]
[322624565,1713130238923,-3612.99,0.00038353,2]
[322624566,1713130238936,-3612.99,0.00038353,2]
[322624567,1713130238947,-3612.99,0.00038353,2]
[322624568,1713130238959,-3612.99,0.00038353,2]
[322624569,1713130238971,-3612.99,0.00038353,2]
[322624570,1713130238982,-3612.99,0.00038353,2]
[322624571,1713130238992,-3612.99,0.00038353,2]
[322624572,1713130239001,-3612.99,0.00038353,2]
[322624573,1713130239011,-3613.03,0.00038353,2]
[322624574,1713130239022,-18418.76102579,0.00038354,5]
[322624575,1713130239031,-470.34138776,0.00038354,4]
[322624576,1713130239042,-157.38490406,0.00038354,4]
[322624577,1713130239052,-538.59791891,0.00038354,4]
[322624578,1713130239062,-155.0,0.00038354,4]
[322624579,1713130239073,-2581.83470807,0.00038354,4]
[322624580,1713130239083,-874.98344823,0.00038354,4]
[322624581,1713130239094,-224.53474292,0.00038354,4]
[322624582,1713130239105,-1308.46081651,0.00038354,4]
[322624583,1713130239116,-467.23792428,0.00038354,4]
[322624584,1713130239125,-215.92726216,0.00038354,4]
[322624585,1713130239137,-1087.97739489,0.00038354,4]
[322624586,1713130239148,-155.0,0.00038354,4]
[322624587,1713130239158,-242.92908465,0.00038354,4]
[322624588,1713130239169,-209.09087823,0.00038354,4]
[322624589,1713130239180,-601.81614276,0.00038354,4]
[322624590,1713130239190,-2122.71055525,0.00038354,4]
[322624591,1713130239199,-473.53133438,0.00038354,4]
[322624592,1713130239210,-269.05043064,0.00038354,4]
[322624593,1713130239220,-203.78092943,0.00038354,4]
[322624594,1713130239230,-2024.95637583,0.00038354,4]
[322624595,1713130239240,-154.86062544,0.00038354,4]
[322624596,1713130239251,-154.84515485,0.00038354,4]
[322624597,1713130239261,-483.94618568,0.00038354,4]
[322624598,1713130239272,-86691.97739194,0.00038354,2]
[322624599,1713130239282,-154.9999381,0.00038355,4]
[322624600,1713130239292,-500.0,0.00038355,15]
[322624601,1713130239302,-500.0,0.00038355,15]
[322624602,1713130239314,-500.0,0.00038355,15]
[322624603,1713130239325,-500.0,0.00038355,15]
[322624604,1713130239335,-188.9888965,0.00038355,15]
[322624605,1713130239346,-500.0,0.00038355,15]
[322624606,1713130239359,-500.0,0.00038355,15]
[322624607,1713130239370,-466.66683023,0.00038355,15]
[322624608,1713130239381,-438.51168124,0.00038355,15]
[322624609,1713130239392,-500.0,0.00038355,15]
[322624610,1713130239403,-500.0,0.00038355,15]
[322624611,1713130239414,-500.0,0.00038355,15]
[322624612,1713130239425,-500.0,0.00038355,15]
[322624613,1713130239435,-500.0,0.00038355,15]
[322624614,1713130239446,-223.52604728,0.00038355,15]
[322624615,1713130239456,-500.0,0.00038355,15]
[322624616,1713130239467,-500.0,0.00038355,15]
[322624617,1713130239480,-500.0,0.00038355,15]
[322624618,1713130239491,-500.0,0.00038355,15]
[322624619,1713130239502,-500.0,0.00038355,15]
[322624620,1713130239511,-582.32964405,0.00038355,15]
[322624621,1713130239523,-500.0,0.00038355,15]
[322624622,1713130239533,-500.0,0.00038355,15]
[322624623,1713130239546,-500.0,0.00038355,15]
[322624624,1713130239559,-500.0,0.00038355,15]
[322624625,1713130239571,-500.0,0.00038355,15]
[322624626,1713130239581,-500.0,0.00038355,15]
[322624627,1713130239592,-500.0,0.00038355,15]
[322624628,1713130239606,-500.0,0.00038355,15]
[322624629,1713130239617,-500.0,0.00038355,15]
[322624630,1713130239627,-500.0,0.00038355,15]
[322624631,1713130239636,-500.0,0.00038355,15]
[322624632,1713130239646,-500.0,0.00038355,15]
[322624633,1713130239655,-500.0,0.00038355,15]
[322624634,1713130239665,-500.0,0.00038355,15]
[322624635,1713130239674,-500.0,0.00038355,15]
[322624636,1713130239683,-500.0,0.00038355,15]
[322624637,1713130239692,-642.61137992,0.00038355,15]
[322624638,1713130239702,-500.0,0.00038355,15]
[322624639,1713130239711,-500.0,0.00038355,15]
[322624640,1713130239720,-500.0,0.00038355,15]
[322624641,1713130239730,-500.0,0.00038355,15]
[322624642,1713130239739,-500.0,0.00038355,15]
[322624643,1713130239748,-500.0,0.00038355,15]
[322624644,1713130239758,-754.55579857,0.00038356,4]
[322624645,1713130239767,-377.37248519,0.00038356,7]
[322624646,1713130239776,-636.64439429,0.00038356,7]
[322624647,1713130239785,-500.0,0.00038356,7]
[322624648,1713130239794,-500.0,0.00038356,7]
[322624649,1713130239803,-500.0,0.00038356,7]
[322624650,1713130239812,-258.36897037,0.00038356,7]
[322624651,1713130239821,-370.34944153,0.00038356,7]
[322624652,1713130239830,-178.28,0.00038356,7]
[322624653,1713130239839,-500.0,0.00038356,7]
[322624654,1713130239849,-500.0,0.00038356,7]
[322624655,1713130239860,-500.0,0.00038356,7]
[322624656,1713130239869,-212.67886994,0.00038356,7]
[322624657,1713130239877,-500.92058028,0.00038356,7]
[322624658,1713130239886,-500.0,0.00038356,7]
[322624659,1713130239895,-500.0,0.00038356,7]
[322624660,1713130239904,-444.3850364,0.00038356,7]
[322624661,1713130239913,-500.0,0.00038356,7]
[322624662,1713130239922,-1505.33,0.00038356,7]
[322624663,1713130239931,-500.0,0.00038356,7]
[322624664,1713130239941,-500.0,0.00038356,7]
[322624665,1713130239951,-500.0,0.00038356,7]
[322624667,1713130239962,-518.9022578,0.00038356,7]
[322624668,1713130239972,-500.0,0.00038356,7]
[322624669,1713130239982,-368.83977831,0.00038356,7]
[322624670,1713130239992,-1000.0,0.00038356,2]
[322624671,1713130240002,-500.0,0.00038356,7]
[322624672,1713130240011,-500.0,0.00038356,7]
[322624673,1713130240020,-517.79576344,0.00038356,7]
[322624674,1713130240031,-500.0,0.00038356,7]
[322624675,1713130240040,-500.0,0.00038356,7]
[322624677,1713130240050,-164.72271127,0.00038356,7]
[322624679,1713130240059,-812.11,0.00038356,7]
[322624681,1713130240068,-500.0,0.00038356,7]
[322624682,1713130240077,-500.0,0.00038356,7]
[322624683,1713130240086,-500.0,0.00038356,7]
[322624684,1713130240096,-500.0,0.00038356,7]
[322624685,1713130240107,-500.0,0.00038356,7]
[322624686,1713130240116,-500.0,0.00038356,7]
[322624687,1713130240125,-500.0,0.00038356,7]
[322624688,1713130240135,-500.0,0.00038356,7]
[322624689,1713130240144,-500.0,0.00038356,7]
[322624690,1713130240153,-504.03,0.00038356,7]
[322624691,1713130240162,-527.46487422,0.00038356,7]
[322624692,1713130240171,-500.0,0.00038356,7]
[322624693,1713130240180,-500.0,0.00038356,7]
[322624694,1713130240189,-532.34576544,0.00038356,7]
[322624695,1713130240198,-500.0,0.00038356,7]
[322624696,1713130240207,-500.0,0.00038356,7]
[322624697,1713130240215,-500.0,0.00038356,7]
[322624698,1713130240224,-500.0,0.00038356,7]
[322624699,1713130240234,-500.0,0.00038356,7]
[322624700,1713130240243,-500.0,0.00038356,7]
[322624701,1713130240253,-500.0,0.00038356,7]
[322624702,1713130240262,-500.0,0.00038356,7]
[322624703,1713130240271,-500.0,0.00038356,7]
[322624704,1713130240280,-1731.24,0.00038356,7]
[322624705,1713130240289,-278.28463039,0.00038356,7]
[322624706,1713130240298,-151.0,0.00038356,2]
[322624707,1713130240307,-500.0,0.00038356,7]
[322624708,1713130240316,-180.12298975,0.00038356,7]
[322624709,1713130240325,-500.0,0.00038356,7]
[322624710,1713130240334,-500.0,0.00038356,7]
[322624711,1713130240343,-500.0,0.00038356,7]
[322624712,1713130240354,-342.388765,0.00038356,2]
[322624713,1713130240362,-500.0,0.00038356,7]
[322624714,1713130240371,-500.0,0.00038356,7]
[322624715,1713130240380,-342.388765,0.00038356,2]
[322624716,1713130240389,-500.0,0.00038356,7]
[322624717,1713130240398,-186.433405,0.00038356,2]
[322624718,1713130240407,-500.0,0.00038356,7]
[322624719,1713130240416,-497.48,0.00038356,7]
[322624720,1713130240425,-186.433405,0.00038356,2]
[322624721,1713130240435,-500.0,0.00038356,7]
[322624722,1713130240444,-500.0,0.00038356,7]
[322624723,1713130240453,-500.0,0.00038356,7]
[322624724,1713130240462,-580.11419855,0.00038356,7]
[322624725,1713130240472,-151.0,0.00038356,2]
[322624726,1713130240484,-500.0,0.00038356,7]
[322624727,1713130240493,-500.0,0.00038356,7]
[322624728,1713130240502,-500.0,0.00038356,7]
[322624729,1713130240512,-500.0,0.00038356,7]
[322624730,1713130240523,-500.0,0.00038356,7]
[322624731,1713130240531,-500.0,0.00038356,7]
[322624732,1713130240542,-271.12152669,0.00038356,7]
[322624733,1713130240550,-500.0,0.00038356,7]
[322624734,1713130240561,-553.39,0.00038356,7]
[322624735,1713130240571,-500.0,0.00038356,7]
[322624736,1713130240581,-500.0,0.00038356,7]
[322624737,1713130240590,-246.51846652,0.00038356,7]
[322624738,1713130240599,-500.0,0.00038356,7]
[322624739,1713130240609,-500.0,0.00038356,7]
[322624740,1713130240618,-181.97753445,0.00038356,7]
[322624741,1713130240627,-1741.234394,0.00038356,2]
[322624742,1713130240636,-500.0,0.00038356,7]
[322624743,1713130240646,-1741.234394,0.00038356,2]
[322624744,1713130240655,-151.0,0.00038356,2]
[322624745,1713130240664,-500.0,0.00038356,7]
[322624746,1713130240673,-500.0,0.00038356,7]
[322624747,1713130240682,-511.27,0.00038356,7]
[322624748,1713130240691,-500.0,0.00038356,7]
[322624749,1713130240700,-500.0,0.00038356,7]
[322624750,1713130240709,-500.0,0.00038356,7]
[322624751,1713130240719,-500.0,0.00038356,7]
[322624752,1713130240728,-500.0,0.00038356,7]
[322624753,1713130240737,-500.0,0.00038356,7]
[322624754,1713130240746,-380.5566609,0.00038356,7]
[322624755,1713130240755,-623.91599245,0.00038356,7]
[322624756,1713130240764,-500.0,0.00038356,7]
[322624757,1713130240774,-500.0,0.00038356,7]
[322624758,1713130240783,-500.0,0.00038356,7]
[322624759,1713130240792,-500.0,0.00038356,7]
[322624760,1713130240801,-500.0,0.00038356,7]
[322624761,1713130240810,-347.42659579,0.00038356,7]
[322624762,1713130240819,-461.04376869,0.00038356,7]
[322624763,1713130240829,-500.0,0.00038356,7]
[322624764,1713130240838,-500.0,0.00038356,7]
[322624765,1713130240847,-260.4001905,0.00038356,7]
[322624766,1713130240859,-500.0,0.00038356,7]
[322624767,1713130240868,-500.0,0.00038356,7]
[322624768,1713130240877,-500.0,0.00038356,7]
[322624769,1713130240887,-500.0,0.00038356,7]
[322624770,1713130240896,-500.0,0.00038356,7]
[322624771,1713130240905,-524.9419037,0.00038356,7]
[322624772,1713130240914,-502.81429633,0.00038356,7]
[322624773,1713130240923,-500.0,0.00038356,7]
[322624774,1713130240932,-4569.16,0.00038356,7]
[322624775,1713130240941,-1737.14,0.00038356,7]
[322624776,1713130240950,-500.0,0.00038356,10]
[322624777,1713130240959,-500.0,0.00038356,10]
[322624778,1713130240968,-500.0,0.00038356,10]
[322624779,1713130240976,-500.0,0.00038356,10]
[322624780,1713130240985,-500.0,0.00038356,10]
[322624781,1713130240994,-500.0,0.00038356,10]
[322624782,1713130241003,-500.0,0.00038356,10]
[322624783,1713130241011,-500.0,0.00038356,10]
[322624784,1713130241020,-500.0,0.00038356,10]
[322624785,1713130241029,-500.0,0.00038356,10]
[322624786,1713130241039,-500.0,0.00038356,7]
[322624787,1713130241048,-500.0,0.00038356,7]
[322624788,1713130241057,-500.0,0.00038356,7]
[322624789,1713130241066,-500.0,0.00038356,7]
[322624790,1713130241075,-500.0,0.00038356,7]
[322624791,1713130241085,-500.0,0.00038356,7]
[322624792,1713130241094,-500.0,0.00038356,7]
[322624793,1713130241105,-500.0,0.00038356,7]
[322624794,1713130241114,-733.48,0.00038356,7]
[322624795,1713130241124,-500.0,0.00038356,7]
[322624796,1713130241133,-500.0,0.00038356,7]
[322624797,1713130241143,-500.0,0.00038356,7]
[322624798,1713130241152,-500.0,0.00038356,7]
[322624799,1713130241161,-151.0,0.00038356,2]
[322624800,1713130241170,-500.0,0.00038356,7]
[322624801,1713130241179,-621.48,0.00038356,7]
[322624802,1713130241188,-151.0,0.00038356,2]
[322624803,1713130241197,-500.0,0.00038356,7]
[322624804,1713130241206,-151.0,0.00038356,2]
[322624805,1713130241216,-1018.9,0.00038356,7]
[322624806,1713130241224,-500.0,0.00038356,7]
[322624807,1713130241233,-500.0,0.00038356,7]
[322624808,1713130241242,-500.0,0.00038356,7]
[322624809,1713130241251,-500.0,0.00038356,7]
[322624810,1713130241261,-566.31201203,0.00038356,7]
[322624811,1713130241270,-500.0,0.00038356,7]
[322624812,1713130241281,-500.0,0.00038356,7]
[322624813,1713130241291,-546.05,0.00038356,7]
[322624814,1713130241303,-500.0,0.00038356,7]
[322624815,1713130241312,-563.87,0.00038356,7]
[322624816,1713130241322,-2822.16393,0.00038356,2]
[322624817,1713130241332,-2822.16393,0.00038356,2]
[322624818,1713130241343,-500.0,0.00038356,7]
[322624819,1713130241353,-218.86964851,0.00038356,7]
[322624820,1713130241362,-500.0,0.00038356,7]
[322624821,1713130241372,-500.0,0.00038356,7]
[322624822,1713130241381,-500.0,0.00038356,7]
[322624823,1713130241391,-511.17,0.00038356,7]
[322624824,1713130241400,-4250.06,0.00038356,7]
[322624825,1713130241410,-500.0,0.00038356,7]
[322624826,1713130241421,-500.0,0.00038356,7]
[322624827,1713130241430,-500.0,0.00038356,7]
[322624828,1713130241440,-500.0,0.00038356,7]
[322624829,1713130241449,-2317.21,0.00038356,7]
[322624830,1713130241458,-500.0,0.00038356,7]
[322624831,1713130241468,-151.0,0.00038356,2]
[322624832,1713130241480,-151.0,0.00038356,2]
[322624833,1713130241491,-500.0,0.00038356,7]
[322624834,1713130241500,-857.73,0.00038356,7]
[322624835,1713130241510,-692.886601,0.00038356,2]
[322624836,1713130241521,-692.886601,0.00038356,2]
[322624837,1713130241532,-21459.6,0.00038356,7]
[322624838,1713130241544,-692.886601,0.00038356,2]
[322624839,1713130241553,-850.61,0.00038356,7]
[322624840,1713130241565,-692.886601,0.00038356,2]
[322624841,1713130241575,-515.04,0.00038356,7]
[322624842,1713130241584,-500.0,0.00038356,7]
[322624843,1713130241593,-500.0,0.00038356,7]
[322624844,1713130241605,-6486.81,0.00038356,7]
[322624845,1713130241614,-1509.79,0.00038356,7]
[322624846,1713130241627,-16035.46,0.00038356,7]
[322624847,1713130241637,-500.0,0.00038356,7]
[322624848,1713130241647,-500.0,0.00038356,7]
[322624849,1713130241656,-500.0,0.00038356,7]
[322624850,1713130241775,-500.0,0.00038356,7]
[322624851,1713130241785,-514.94946323,0.00038356,7]
[322624852,1713130241794,-2397.22,0.00038356,7]
[322624853,1713130241803,-500.0,0.00038356,7]
[322624854,1713130241812,-2099.85,0.00038356,7]
[322624855,1713130241822,-500.0,0.00038356,7]
[322624856,1713130241831,-500.0,0.00038356,7]
[322624857,1713130241841,-200.5177822,0.00038356,7]
[322624858,1713130241852,-500.0,0.00038356,7]
[322624859,1713130241862,-1939.48,0.00038356,7]
[322624860,1713130241872,-500.0,0.00038356,7]
[322624861,1713130241882,-500.0,0.00038356,7]
[322624862,1713130241891,-500.0,0.00038356,7]
[322624863,1713130241902,-500.0,0.00038356,7]
[322624864,1713130241912,-500.0,0.00038356,7]
[322624865,1713130241922,-151.0,0.00038356,2]
[322624866,1713130241931,-853.51,0.00038356,7]
[322624867,1713130241941,-158.953514,0.00038356,2]
[322624868,1713130241953,-2596.81,0.00038356,7]
[322624869,1713130241964,-563.21,0.00038356,7]
[322624870,1713130241974,-500.0,0.00038356,7]
[322624871,1713130241984,-151.0,0.00038356,2]
[322624872,1713130241994,-151.0,0.00038356,2]
[322624873,1713130242004,-500.0,0.00038356,7]
[322624874,1713130242015,-500.0,0.00038356,7]
[322624875,1713130242025,-500.0,0.00038356,7]
[322624876,1713130242035,-607.74,0.00038356,7]
[322624877,1713130242045,-989.7,0.00038356,7]
[322624878,1713130242055,-500.0,0.00038356,7]
[322624879,1713130242066,-151.0,0.00038356,2]
[322624880,1713130242076,-803.44,0.00038356,7]
[322624881,1713130242086,-633.89,0.00038356,7]
[322624882,1713130242096,-721.15,0.00038356,7]
[322624883,1713130242109,-1527.74,0.00038356,7]
[322624884,1713130242118,-500.0,0.00038356,7]
[322624885,1713130242128,-500.0,0.00038356,7]
[322624886,1713130242137,-500.0,0.00038356,7]